bitfinex/quotes_BTCUSD_20260104
["timestamp","ask_amount","ask_price","bid_price","bid_amount"]
[1767537946777,0.000999,91117.0,91115.0,0.06585078]
[1767537946990,0.00407964,91119.0,91115.0,0.06585078]
[1767537947416,0.00407964,91119.0,91116.0,0.01097502]
[1767537947930,0.01097417,91123.0,91117.0,0.0109749]
[1767537948160,0.03293393,91125.0,91121.0,0.05487183]
[1767537948487,0.08780363,91125.0,91121.0,0.05487183]
[1767537948689,0.03293393,91125.0,91121.0,0.05487183]
[1767537949185,0.03293393,91125.0,91121.0,0.06584624]
[1767537949384,0.01097405,91124.0,91120.0,0.11230608]
[1767537950218,0.08780362,91125.0,91121.0,0.11230574]
[1767537950421,0.08780362,91125.0,91121.0,0.06584642]
[1767537951026,0.06584446,91124.0,91120.0,0.06584676]
[1767537951253,0.06584509,91123.0,91119.0,0.01097465]
[1767537951402,0.06584509,91123.0,91120.0,0.04645932]
[1767537951628,0.03293393,91125.0,91120.0,0.06584665]
[1767537951834,0.08780379,91125.0,91120.0,0.06584665]
[1767537952229,0.01097405,91124.0,91120.0,0.06584665]
[1767537952429,0.06584534,91123.0,91117.0,0.0109749]
[1767537952630,0.000999,91120.0,91118.0,0.05487356]
[1767537953085,0.01097429,91122.0,91118.0,0.06584833]
[1767537953325,0.01097429,91122.0,91118.0,0.11230765]
[1767537953687,0.01097441,91121.0,91118.0,0.04645932]
[1767537954089,0.01097441,91121.0,91117.0,0.0658489]
[1767537954286,0.06584618,91122.0,91118.0,0.06584857]
[1767537954468,0.01097429,91122.0,91118.0,0.06584857]
[1767537954673,0.01097441,91121.0,91117.0,0.11230822]
[1767537954874,0.01097441,91121.0,91118.0,0.04645932]
[1767537955083,0.01097441,91121.0,91115.0,0.04645932]
[1767537955084,0.01097477,91118.0,91115.0,0.04645932]
[1767537955698,0.01097477,91118.0,91113.0,0.10133573]
[1767537956100,0.06584794,91119.0,91114.0,0.06585126]
[1767537957352,0.06584794,91119.0,91114.0,0.11231058]
[1767537957485,0.06584794,91119.0,91115.0,0.04645932]
[1767537957889,0.06584794,91119.0,91115.0,0.11231008]
[1767537958503,0.06584794,91119.0,91115.0,0.04645932]
[1767537958749,0.06584794,91119.0,91115.0,0.11231009]
[1767537958926,0.01097477,91118.0,91115.0,0.04645932]
[1767537960653,0.0109749,91117.0,91111.0,0.01097562]
[1767537960836,0.01097502,91116.0,91111.0,0.04866484]
[1767537961032,0.06584961,91117.0,91112.0,0.11451732]
[1767537961253,0.01097502,91116.0,91109.0,0.04866484]
[1767537961468,0.05487724,91113.0,91109.0,0.04866484]
[1767537961674,0.01097538,91113.0,91109.0,0.0596407]
[1767537961816,0.01097538,91113.0,91109.0,0.11451998]
[1767537962017,0.06585249,91113.0,91109.0,0.11451998]
[1767537962243,0.01097526,91114.0,91110.0,0.06585438]
[1767537962500,0.01097526,91114.0,91110.0,0.11451922]
[1767537962673,0.06585093,91115.0,91111.0,0.06585345]
[1767537962881,0.06585093,91115.0,91110.0,0.11451922]
[1767537962882,0.06585171,91114.0,91110.0,0.11451922]
[1767537963116,0.06585171,91114.0,91108.0,0.01097598]
[1767537963117,0.06585327,91112.0,91108.0,0.01097598]
[1767537963408,0.06585275,91114.0,91109.0,0.01097586]
[1767537963575,0.06585275,91114.0,91110.0,0.05964058]
[1767537963766,0.06585235,91113.0,91110.0,0.04866484]
[1767537964550,0.06585235,91113.0,91107.0,0.04866484]
[1767537964551,0.01097538,91113.0,91107.0,0.04866484]
[1767537964772,0.01097538,91113.0,91109.0,0.05487931]
[1767537965401,0.01097658,91103.0,91096.0,0.08160227]
[1767537965547,0.06585932,91104.0,91103.0,0.000999]
[1767537965755,0.06585932,91104.0,91099.0,0.11475789]
[1767537965756,0.01097658,91103.0,91099.0,0.11475789]
[1767537966159,0.0109767,91102.0,91099.0,0.048896]
[1767537966358,0.06585974,91103.0,91102.0,0.000999]
[1767537966608,0.05488534,91099.0,91098.0,0.000152]
[1767537966809,0.05428534,91099.0,91098.0,0.000152]
[1767537967391,0.05488474,91100.0,91098.0,0.000152]
[1767537968273,0.05488474,91100.0,91098.0,0.00019556]
[1767537968467,0.05488534,91099.0,91098.0,5.6e-07]
[1767537968713,0.0538645,91099.0,91098.0,5.6e-07]
[1767537969048,0.10319067,91099.0,91098.0,5.6e-07]
[1767537969261,0.0538645,91099.0,91098.0,5.6e-07]
[1767537969797,0.05488474,91100.0,91098.0,5.6e-07]
[1767537970241,0.01097682,91101.0,91098.0,5.6e-07]
[1767537970440,0.06586097,91101.0,91098.0,5.6e-07]
[1767537971225,0.05488534,91099.0,91098.0,5.6e-07]
[1767537971621,0.05488529,91100.0,91098.0,5.6e-07]
[1767537971846,0.05488534,91099.0,91098.0,5.6e-07]
[1767537973081,0.06586026,91102.0,91098.0,5.6e-07]
[1767537973219,0.06586026,91102.0,91099.0,0.000195]
[1767537973629,0.06586026,91102.0,91098.0,0.06586363]
[1767537973630,0.0109767,91102.0,91098.0,0.06586363]
[1767537973830,0.06585953,91103.0,91095.0,0.19099788]
[1767537974484,0.00050408,91108.0,91103.0,0.01117158]
[1767537974689,0.01097622,91106.0,91103.0,0.000195]
[1767537974854,0.01097622,91106.0,91101.0,0.06586094]
[1767537975432,0.00218506,91099.0,91096.0,0.04866484]
[1767537975635,0.00218506,91099.0,91096.0,0.05964227]
[1767537975836,0.00199006,91099.0,91098.0,0.05488594]
[1767537976234,0.00199006,91099.0,91098.0,0.10355078]
[1767537977149,0.00199006,91099.0,91093.0,0.01097779]
[1767537977150,0.01097827,91089.0,91085.0,0.04866484]
[1767537977390,0.05489317,91086.0,91085.0,0.04872033]
[1767537977582,0.01090966,91088.0,91085.0,0.04872033]
[1767537977723,0.06580168,91088.0,91085.0,0.04872033]
[1767537978261,0.00094351,91085.0,91082.0,0.10356019]
[1767537978411,0.00094351,91085.0,91083.0,0.10355974]
[1767537978612,0.01090966,91088.0,91084.0,0.05964371]
[1767537978809,0.06587,91090.0,91085.0,0.05964359]
[1767537979065,0.06586825,91091.0,91088.0,0.000999]
[1767537979266,0.06586825,91091.0,91086.0,0.06587179]
[1767537979468,0.01097803,91091.0,91087.0,0.06587087]
[1767537979667,0.01097779,91093.0,91088.0,0.01097839]
[1767537979874,0.06586732,91093.0,91088.0,0.06587019]
[1767537980172,0.11519349,91093.0,91088.0,0.06587019]
[1767537980664,0.01097791,91092.0,91088.0,0.01097839]
[1767537981025,0.0658675,91092.0,91088.0,0.01097839]
[1767537981236,0.0658675,91092.0,91087.0,0.06587087]
[1767537982096,0.0658675,91092.0,91088.0,0.01097839]
[1767537982330,0.11519349,91093.0,91089.0,0.01097827]
[1767537982991,0.0347407,91093.0,91090.0,0.01097815]
[1767537983196,0.05644235,91097.0,91093.0,0.000999]
[1767537983358,0.06586464,91096.0,91092.0,0.01097791]
[1767537983564,0.05644235,91097.0,91093.0,0.01097779]
[1767537984022,0.11132912,91097.0,91093.0,0.01097779]
[1767537984225,0.06586407,91097.0,91093.0,0.01097779]
[1767537984563,0.06586407,91097.0,91092.0,0.06586742]
[1767537984785,0.06586407,91097.0,91091.0,0.06586807]
[1767537984786,0.01097755,91095.0,91091.0,0.06586807]
[1767537985597,0.01097779,91093.0,91088.0,0.05964323]
[1767537985977,0.06586679,91093.0,91089.0,0.06586954]
[1767537986369,0.21952955,91104.0,91092.0,0.01097791]
[1767537986617,0.06586459,91096.0,91092.0,0.06586705]
[1767537986824,0.01097743,91096.0,91092.0,0.06586705]
[1767537987029,0.01097743,91096.0,91092.0,0.01097791]
[1767537987190,0.01097743,91096.0,91092.0,0.0658674]
[1767537987389,0.06586434,91097.0,91092.0,0.0658674]
[1767537987992,0.06586473,91096.0,91092.0,0.01097791]
[1767537988535,0.02196,91102.0,91096.0,0.01197643]
[1767537988903,0.02196,91102.0,91097.0,0.05488633]
[1767537989340,0.01097682,91101.0,91097.0,0.05488606]
[1767537989542,0.02196,91102.0,91097.0,0.05488606]
[1767537989723,0.02196,91102.0,91098.0,0.05488594]
[1767537989947,0.00099106,91099.0,91098.0,0.05488594]
[1767537991521,0.000999,91098.0,91097.0,0.05488606]
[1767537991771,0.00099106,91099.0,91097.0,0.05484178]
[1767537992264,0.00099106,91099.0,91096.0,0.06586455]
[1767537992430,0.000999,91097.0,91096.0,0.06586455]
[1767537992813,0.00099106,91099.0,91096.0,0.06586455]
[1767537993270,0.00099106,91099.0,91097.0,0.05488652]
[1767537993448,1.1267978,91136.0,91096.0,0.01097743]
[1767537993449,0.01097622,91106.0,91102.0,0.01087667]
[1767537993790,0.02196,91105.0,91102.0,0.01087667]
[1767537993998,0.02196,91105.0,91102.0,0.06575967]
[1767537994587,0.02196,91105.0,91103.0,0.05488274]
[1767537994753,8.711e-05,91106.0,91105.0,0.05488172]
[1767537994954,8.711e-05,91106.0,91105.0,0.10127937]
[1767537995768,1e-08,91109.0,91108.0,0.05487992]
[1767537996512,0.06584701,91121.0,91116.0,0.06584974]
[1767537996658,0.06584731,91120.0,91116.0,0.01097502]
[1767537996877,0.06584701,91121.0,91116.0,0.06584989]
[1767537997082,0.06584275,91127.0,91122.0,0.04639765]
[1767537997298,0.06584275,91127.0,91118.0,0.01097477]
[1767537997299,0.01097381,91126.0,91120.0,0.01097453]
[1767537997522,0.01097393,91125.0,91121.0,0.01097441]
[1767537997734,0.01097393,91125.0,91120.0,0.06584714]
[1767537997936,0.01097405,91124.0,91120.0,0.06584717]
[1767537998144,0.01097405,91124.0,91120.0,0.01097453]
[1767537998642,0.01097405,91124.0,91120.0,0.06584701]
[1767537998843,0.06584363,91125.0,91120.0,0.06584701]
[1767537999829,0.01097405,91124.0,91119.0,0.06584675]
[1767538000073,0.05487097,91123.0,91119.0,0.01097465]
[1767538000778,0.01097429,91122.0,91118.0,0.01097477]
[1767538001562,0.01097502,91116.0,91110.0,0.02196]
[1767538001882,0.05487744,91114.0,91110.0,8.711e-05]
[1767538002027,0.01097538,91113.0,91110.0,8.711e-05]
[1767538002469,0.05487811,91111.0,91110.0,8.711e-05]
[1767538003536,0.06585348,91113.0,91110.0,8.711e-05]
[1767538003941,0.05487811,91111.0,91110.0,8.711e-05]
[1767538004175,0.06585348,91113.0,91110.0,8.711e-05]
[1767538004717,0.05487759,91112.0,91110.0,8.711e-05]
[1767538005500,0.05487811,91111.0,91110.0,1.1e-07]
[1767538005739,0.05487759,91112.0,91110.0,1.1e-07]
[1767538006120,0.00997638,91113.0,91112.0,8.7e-05]
[1767538006279,0.00997638,91113.0,91110.0,1.1e-07]
[1767538006678,0.06585195,91115.0,91110.0,0.06585448]
[1767538007300,0.06585161,91114.0,91110.0,0.06585448]
[1767538007889,0.01097526,91114.0,91110.0,0.06585448]
[1767538008361,0.01097514,91115.0,91111.0,0.06585371]
[1767538008516,0.06585128,91116.0,91111.0,0.06585371]
[1767538008687,0.06585128,91116.0,91112.0,0.0109755]
[1767538008884,0.06584922,91118.0,91116.0,8.7e-05]
[1767538009293,0.06584922,91118.0,91114.0,0.01097526]
[1767538010173,0.01097453,91120.0,91114.0,0.01097526]
[1767538010174,0.06584735,91120.0,91118.0,8.7e-05]
[1767538010511,0.06584735,91120.0,91116.0,0.01097502]
[1767538010721,0.06584799,91119.0,91115.0,0.06585051]
[1767538010952,0.02196,91121.0,91116.0,0.01097502]
[1767538011148,0.02196,91121.0,91118.0,0.01097477]
[1767538011446,0.021873,91121.0,91118.0,0.01097477]
[1767538011624,0.021873,91121.0,91118.0,0.0658484]
[1767538012035,0.021873,91121.0,91119.0,0.05487297]
[1767538012841,0.23045018,91126.0,91122.0,0.06584533]
[1767538012842,0.01097381,91126.0,91122.0,0.06584533]
[1767538013018,0.08780301,91126.0,91122.0,0.01097429]
[1767538013370,0.02196,91126.0,91122.0,0.06584539]
[1767538013522,0.08780305,91126.0,91122.0,0.06584539]
[1767538013717,0.08780305,91126.0,91121.0,0.06584637]
[1767538013921,0.03293381,91126.0,91122.0,0.06584564]
[1767538014307,0.02196,91126.0,91122.0,0.06584564]
[1767538014507,0.05487222,91121.0,91116.0,0.01097502]
[1767538014779,0.05487228,91121.0,91117.0,0.0109749]
[1767538014923,0.01097465,91119.0,91113.0,0.01097538]
[1767538015119,0.01097453,91120.0,91116.0,0.01097502]
[1767538015317,0.06584698,91121.0,91116.0,0.01097502]
[1767538015523,0.01097441,91121.0,91117.0,0.0109749]
[1767538015757,0.01097429,91122.0,91118.0,0.06584846]
[1767538015940,0.01097405,91124.0,91119.0,0.11224524]
[1767538016397,0.01097405,91124.0,91119.0,0.06584759]
[1767538016614,0.01097405,91124.0,91120.0,0.05487239]
[1767538017255,0.01097405,91124.0,91120.0,0.06584692]
[1767538017460,0.06054293,91124.0,91120.0,0.06584692]
[1767538017583,0.06054293,91124.0,91120.0,0.06580264]
[1767538017791,0.06054293,91124.0,91120.0,0.01097453]
[1767538018217,0.04650927,91123.0,91120.0,0.06584692]
[1767538018785,0.01097417,91123.0,91119.0,0.06584759]
[1767538018990,0.0658449,91124.0,91119.0,0.06584759]
[1767538020048,0.01097429,91122.0,91117.0,0.06584939]
[1767538020255,0.01097429,91122.0,91118.0,0.06584849]
[1767538020632,0.06584516,91123.0,91119.0,0.01097465]
[1767538020941,0.06584516,91123.0,91119.0,0.00997565]
[1767538021156,0.06584581,91122.0,91118.0,0.01097477]
[1767538021340,0.01097417,91123.0,91119.0,0.01097465]
[1767538021537,0.01097417,91123.0,91119.0,0.06584764]
[1767538021739,0.06584551,91123.0,91119.0,0.01097465]
[1767538022361,0.06584551,91123.0,91118.0,0.06584823]
[1767538022581,0.06584551,91123.0,91119.0,0.06584791]
[1767538023321,0.01097417,91123.0,91119.0,0.06584791]
[1767538023457,0.06584538,91124.0,91119.0,0.06584791]
[1767538023864,0.06584506,91123.0,91119.0,0.06584791]
[1767538024100,0.01097417,91123.0,91119.0,0.06584791]
[1767538024882,0.01097429,91122.0,91118.0,0.06584866]
[1767538025262,0.06584588,91122.0,91118.0,0.01097477]
[1767538025483,0.06584588,91122.0,91118.0,0.06584862]
[1767538026022,0.06584588,91122.0,91118.0,0.01097477]
[1767538026225,0.06584652,91121.0,91117.0,0.06584936]
[1767538026428,0.01097465,91119.0,91114.0,0.11296073]
[1767538026582,0.05487438,91118.0,91114.0,0.01097526]
[1767538026783,0.06584838,91119.0,91114.0,0.06580687]
[1767538026989,0.01097465,91119.0,91115.0,0.0658507]
[1767538027195,0.06584818,91119.0,91115.0,0.0658507]
[1767538027751,0.01097465,91119.0,91115.0,0.0658507]
[1767538029158,0.06584582,91122.0,91119.0,0.00095473]
[1767538029367,0.01097429,91122.0,91118.0,0.06584851]
[1767538029653,0.01097417,91123.0,91119.0,0.06584791]
[1767538030355,0.06584443,91124.0,91119.0,0.06584791]
[1767538030356,0.06584363,91125.0,91123.0,0.000955]
[1767538030564,0.05486987,91125.0,91123.0,0.000955]
[1767538031064,0.0658438,91125.0,91121.0,0.01097441]
[1767538034920,0.04650927,91124.0,91121.0,0.01097441]
[1767538035130,0.04650927,91123.0,91120.0,0.06584703]
[1767538035337,0.04650927,91123.0,91120.0,0.01097453]
[1767538035496,0.04650927,91123.0,91119.0,0.06584774]
[1767538035497,0.11235435,91123.0,91119.0,0.06584774]
[1767538037509,0.04650927,91122.0,91119.0,0.06584774]
[1767538037735,0.04650927,91122.0,91120.0,0.05487259]
[1767538037941,0.04555427,91122.0,91120.0,0.05487259]
[1767538038630,0.01097405,91124.0,91120.0,0.05487259]
[1767538038833,0.06584447,91124.0,91120.0,0.06584712]
[1767538039818,0.01097405,91124.0,91120.0,0.06584712]
[1767538040242,0.06584363,91125.0,91121.0,0.06584644]
[1767538040615,0.08780303,91126.0,91121.0,0.06584644]
[1767538040821,0.02196,91126.0,91122.0,0.11295595]
[1767538041017,0.02196,91126.0,91123.0,0.04711019]
[1767538042877,0.02196,91126.0,91123.0,0.05808436]
[1767538043076,0.02196,91126.0,91123.0,0.11295509]
[1767538043276,0.02196,91126.0,91123.0,0.04711019]
[1767538043458,0.07682917,91126.0,91123.0,0.04611119]
[1767538043662,0.02196,91126.0,91123.0,0.04611119]
[1767538043862,0.020961,91126.0,91123.0,0.11195597]
[1767538044073,0.020961,91126.0,91124.0,0.05487027]
[1767538044277,0.000152,91130.0,91125.0,0.05808412]
[1767538044515,0.02196,91129.0,91128.0,0.10197806]
[1767538044793,0.02196,91129.0,91128.0,0.05486787]
[1767538045796,0.0575254,91140.0,91135.0,0.01097273]
[1767538045997,0.0794854,91140.0,91135.0,0.06583636]
[1767538046464,0.0794854,91140.0,91136.0,0.01097261]
[1767538046622,0.0794854,91140.0,91135.0,0.06483736]
[1767538046830,0.06851327,91140.0,91136.0,0.06583562]
[1767538047030,0.02196,91140.0,91138.0,0.05486185]
[1767538047380,0.02196,91140.0,91138.0,0.05486176]
[1767538048022,0.020961,91140.0,91138.0,0.05486176]
[1767538048221,0.01097128,91147.0,91143.0,0.01097176]
[1767538048429,0.01105841,91147.0,91143.0,0.01097176]
[1767538048627,8.713e-05,91147.0,91144.0,0.01097164]
[1767538048824,0.21941232,91153.0,91144.0,0.01097164]
[1767538048825,0.000152,91148.0,91147.0,0.10196663]
[1767538049315,0.02196,91154.0,91151.0,0.04711019]
[1767538050001,0.02196,91154.0,91152.0,0.05485339]
[1767538050634,0.01096924,91164.0,91159.0,0.06088895]
[1767538050845,0.06581573,91164.0,91160.0,0.04991911]
[1767538051057,0.01096924,91164.0,91160.0,0.05988983]
[1767538051320,0.06581629,91163.0,91160.0,0.04892011]
[1767538051530,0.01096948,91162.0,91158.0,0.06088907]
[1767538051744,0.0658169,91162.0,91158.0,0.04991911]
[1767538051955,0.01096936,91163.0,91159.0,0.01096984]
[1767538052163,0.06581628,91163.0,91158.0,0.11573884]
[1767538052376,0.01096912,91165.0,91160.0,0.06088883]
[1767538052586,0.011121,91166.0,91162.0,0.04991911]
[1767538053027,0.01096912,91165.0,91162.0,0.04991911]
[1767538053525,0.06581473,91165.0,91162.0,0.04991911]
[1767538054902,0.01096912,91165.0,91162.0,0.04991911]
[1767538055573,0.06581475,91165.0,91162.0,0.04991911]
[1767538057653,0.06581617,91163.0,91156.0,0.05485102]
[1767538058150,0.0109696,91161.0,91157.0,0.01097008]
[1767538058351,0.06581617,91163.0,91161.0,0.000999]
[1767538058516,0.01096936,91163.0,91159.0,0.01096984]
[1767538058717,0.0658153,91165.0,91160.0,0.01096972]
[1767538058954,0.0658153,91165.0,91160.0,0.06581823]
[1767538059154,0.000152,91166.0,91164.0,0.05484618]
[1767538059357,0.000152,91166.0,91165.0,0.000999]
[1767538059706,0.000152,91166.0,91165.0,0.0548456]
[1767538059919,6.341e-05,91166.0,91164.0,0.05484618]
[1767538060129,6.341e-05,91166.0,91160.0,0.23036266]
[1767538060130,0.03292803,91174.0,91170.0,0.01096852]
[1767538060335,0.01096827,91172.0,91168.0,0.05653739]
[1767538060563,0.01087969,91172.0,91168.0,0.06581235]
[1767538060731,0.03292803,91174.0,91169.0,0.06581171]
[1767538060974,0.06580911,91173.0,91169.0,0.01096864]
[1767538062565,0.06617005,91173.0,91169.0,0.01096864]
[1767538063499,0.01132909,91173.0,91169.0,0.06581171]
[1767538063623,0.00282431,91174.0,91173.0,0.10140842]
[1767538063832,0.00282431,91174.0,91173.0,0.04556863]
[1767538064070,0.00282431,91174.0,91173.0,0.05484079]
[1767538064268,0.01096755,91178.0,91174.0,0.01096803]
[1767538064482,0.01107577,91178.0,91174.0,0.01096803]
[1767538064681,0.00010822,91178.0,91176.0,0.05483858]
[1767538064838,0.00010822,91178.0,91175.0,0.01096791]
[1767538065032,0.05494605,91178.0,91174.0,0.06580785]
[1767538065232,0.02196,91184.0,91178.0,0.06669553]
[1767538065436,0.07679462,91184.0,91178.0,0.01096755]
[1767538065697,0.08776145,91184.0,91180.0,0.01096731]
[1767538065869,0.08776145,91184.0,91180.0,0.06580361]
[1767538066067,0.08776145,91184.0,91179.0,0.06580461]
[1767538066270,0.03292683,91184.0,91180.0,0.06580356]
[1767538066478,0.02196,91184.0,91181.0,0.06580286]
[1767538067168,0.01136587,91192.0,91185.0,0.01096671]
[1767538067353,0.01096599,91191.0,91186.0,0.0547244]
[1767538067552,0.01096599,91191.0,91187.0,0.05483237]
[1767538067805,0.01136587,91192.0,91187.0,0.05483237]
[1767538068222,0.01136587,91192.0,91186.0,0.0547244]
[1767538068428,0.01136587,91192.0,91183.0,0.01096695]
[1767538068577,0.01096611,91190.0,91185.0,0.01096671]
[1767538068776,0.01096623,91189.0,91185.0,0.01096671]
[1767538069180,0.06579721,91190.0,91185.0,0.06579973]
[1767538069378,0.065796,91191.0,91186.0,0.05483266]
[1767538069606,0.01096611,91190.0,91185.0,0.06579973]
[1767538069922,0.06579604,91191.0,91186.0,0.05483242]
[1767538070319,0.06579689,91190.0,91185.0,0.06579919]
[1767538070498,0.01096611,91190.0,91186.0,0.05483291]
[1767538071312,0.06579604,91191.0,91186.0,0.05483291]
[1767538072539,0.0657968,91190.0,91185.0,0.06579919]
[1767538072759,0.0459615,91187.0,91185.0,0.06579919]
[1767538072961,0.0459615,91187.0,91185.0,0.0267659]
[1767538073251,0.0459615,91182.0,91180.0,0.05483646]
[1767538073617,0.0459615,91182.0,91179.0,0.06580461]
[1767538073999,0.0459615,91182.0,91179.0,0.01096743]
[1767538074199,0.05692857,91182.0,91177.0,0.06580603]
[1767538074401,0.0459615,91177.0,91174.0,0.02196]
[1767538074603,0.01096767,91177.0,91174.0,0.02196]
[1767538074881,0.06580617,91177.0,91174.0,0.02196]
[1767538075201,0.06580537,91178.0,91174.0,0.03292803]
[1767538075655,0.06580517,91179.0,91175.0,0.06580746]
[1767538075873,0.06580517,91179.0,91178.0,0.000999]
[1767538076259,0.06580559,91178.0,91174.0,0.08776808]
[1767538076494,0.01096755,91178.0,91174.0,0.08776808]
[1767538076884,0.06580537,91178.0,91174.0,0.03292803]
[1767538077261,0.06580537,91178.0,91174.0,0.08776819]
[1767538077466,0.01096755,91178.0,91174.0,0.03292803]
[1767538077795,0.01096755,91178.0,91174.0,0.087768]
[1767538077933,0.01096755,91178.0,91174.0,0.03292803]
[1767538078695,0.06580517,91179.0,91175.0,0.0658075]
[1767538078875,0.06580517,91179.0,91175.0,0.01096791]
[1767538079213,0.06580517,91179.0,91175.0,0.06580744]
[1767538079395,0.06580517,91179.0,91174.0,0.08776802]
[1767538080735,0.06580517,91179.0,91175.0,0.01096791]
[1767538080913,0.06580539,91178.0,91174.0,0.08776802]
[1767538081116,0.06580539,91178.0,91174.0,0.03292803]
[1767538081507,0.06580573,91178.0,91174.0,0.03292803]
[1767538081945,0.06580627,91177.0,91174.0,0.02196]
[1767538082274,0.01096743,91179.0,91174.0,0.02196]
[1767538082275,0.06072192,91179.0,91175.0,0.01096791]
[1767538082415,0.05483751,91179.0,91175.0,0.01096791]
[1767538083157,0.06580494,91179.0,91174.0,0.03292803]
[1767538083338,0.01096767,91177.0,91174.0,0.02196]
[1767538083925,0.06580658,91177.0,91174.0,0.02196]
[1767538084547,0.06580544,91178.0,91174.0,0.03292803]
[1767538085310,0.01096755,91178.0,91174.0,0.03292803]
[1767538085518,0.06580478,91179.0,91174.0,0.03292803]
[1767538085935,0.06580478,91179.0,91174.0,0.08776778]
[1767538086463,0.06580544,91178.0,91174.0,0.08776778]
[1767538086669,0.06580478,91179.0,91175.0,0.01096791]
[1767538087061,0.06580478,91179.0,91171.0,0.27213299]
[1767538087259,0.01096683,91184.0,91180.0,0.01096731]
[1767538087550,0.06580142,91184.0,91180.0,0.06580382]
[1767538087751,0.01096683,91184.0,91180.0,0.06580382]
[1767538088954,0.0658003,91185.0,91180.0,0.06580382]
[1767538089550,0.06580128,91184.0,91180.0,0.01096731]
[1767538090313,0.06580128,91184.0,91179.0,0.06580456]
[1767538091369,0.0658003,91185.0,91184.0,0.000999]
[1767538091505,0.0658003,91185.0,91181.0,0.01096719]
[1767538092104,0.05483496,91183.0,91179.0,0.06580454]
[1767538092306,0.05474636,91183.0,91179.0,0.06580454]
[1767538093136,0.04574513,91182.0,91179.0,0.06580454]
[1767538094336,0.04474613,91182.0,91180.0,0.0548364]
[1767538094547,0.04474613,91182.0,91181.0,0.05483598]
[1767538094743,0.02196,91186.0,91185.0,0.05483358]
[1767538095436,0.13390037,91192.0,91187.0,0.05483237]
[1767538095646,0.04614513,91192.0,91187.0,0.05483237]
[1767538096604,0.0004,91192.0,91187.0,0.05483237]
[1767538097209,0.0004,91192.0,91185.0,0.06580029]
[1767538097210,0.06619022,91199.0,91193.0,0.01096575]
[1767538097410,0.0004,91199.0,91195.0,0.05482756]
[1767538097722,0.0004,91199.0,91195.0,0.09962915]
[1767538099136,0.01136503,91199.0,91195.0,0.09962915]
[1767538099667,0.01096515,91198.0,91195.0,0.04580059]
[1767538099812,0.00046328,91196.0,91195.0,0.10062815]
[1767538100199,0.00046328,91196.0,91195.0,0.04580059]
[1767538101040,2.8e-07,91196.0,91195.0,0.10062815]
[1767538102712,2.8e-07,91196.0,91195.0,0.04580059]
[1767538102954,2.8e-07,91196.0,91193.0,0.11159457]
[1767538103154,2.8e-07,91196.0,91193.0,0.11113157]
[1767538103359,2.8e-07,91196.0,91194.0,0.10062865]
[1767538103558,2.8e-07,91196.0,91194.0,0.10062869]
[1767538103761,0.01096599,91191.0,91181.0,0.05676778]
[1767538103987,0.06579715,91190.0,91185.0,0.01096671]
[1767538104189,0.01096623,91189.0,91185.0,0.01096671]
[1767538104384,0.06579764,91189.0,91184.0,0.06580097]
[1767538104554,0.06579764,91189.0,91185.0,0.01096671]
[1767538105308,0.06579751,91189.0,91185.0,0.06580013]
[1767538105509,0.06579751,91189.0,91185.0,0.01096671]
[1767538105725,0.06579751,91189.0,91185.0,0.06580017]
[1767538106764,0.06579715,91190.0,91185.0,0.06580017]
[1767538106964,0.01096623,91189.0,91185.0,0.01096671]
[1767538108011,0.0657976,91189.0,91185.0,0.06580017]
[1767538108816,0.06579715,91190.0,91186.0,0.0548329]
[1767538109598,0.06579715,91190.0,91185.0,0.06580017]
[1767538111061,0.06579791,91189.0,91185.0,0.06580021]
[1767538112339,0.01096623,91189.0,91185.0,0.06580021]
[1767538114950,0.01096635,91188.0,91184.0,0.065801]
[1767538115374,0.01096623,91189.0,91185.0,0.06580026]
[1767538116252,0.06579672,91190.0,91185.0,0.06580026]
[1767538116642,0.06579672,91190.0,91186.0,0.01096659]
[1767538117771,0.06579744,91189.0,91185.0,0.06580026]
[1767538117987,0.06579672,91190.0,91185.0,0.06580026]
[1767538118314,0.06579582,91192.0,91188.0,0.01096635]
[1767538118515,0.06579469,91193.0,91190.0,0.000999]
[1767538118662,0.23027499,91196.0,91190.0,0.01196511]
[1767538118663,0.05482769,91195.0,91190.0,0.01196511]
[1767538118847,0.05482769,91195.0,91190.0,0.06579618]
[1767538119460,0.0657932,91195.0,91190.0,0.06579618]
[1767538120258,0.0657932,91195.0,91191.0,0.01096599]
[1767538120649,0.01096551,91195.0,91191.0,0.06579593]
[1767538121140,0.06579316,91195.0,91191.0,0.06579593]
[1767538121343,0.06579316,91195.0,91190.0,0.06579637]
[1767538121543,0.06579402,91194.0,91190.0,0.01096611]
[1767538122106,0.01096611,91190.0,91186.0,0.06579949]
[1767538122310,0.01096611,91190.0,91185.0,0.05829892]
[1767538123175,0.05483117,91189.0,91185.0,0.11313244]
[1767538123367,0.0657974,91189.0,91185.0,0.11313244]
[1767538123549,0.06579539,91192.0,91188.0,0.01096635]
[1767538125147,0.01096587,91192.0,91188.0,0.0657976]
[1767538125517,0.01096563,91194.0,91192.0,0.000999]
[1767538125747,0.01096563,91194.0,91189.0,0.06579734]
[1767538125748,0.01096563,91194.0,91190.0,0.05483004]
[1767538126713,0.06579414,91194.0,91189.0,0.06579734]
[1767538127288,0.06579414,91194.0,91190.0,0.01096611]
[1767538127504,0.05482877,91193.0,91190.0,0.01096611]
[1767538127735,0.06579414,91194.0,91190.0,0.01096611]
[1767538127941,0.06570553,91194.0,91190.0,0.01096611]
[1767538128629,0.06570553,91194.0,91190.0,0.06579667]
[1767538129812,0.06579323,91196.0,91190.0,0.06579667]
[1767538130171,0.06579423,91194.0,91190.0,0.06579667]
[1767538132483,0.06579423,91194.0,91190.0,0.01096611]
[1767538132746,0.01096575,91193.0,91189.0,0.06579734]
[1767538134442,0.05618868,91193.0,91189.0,0.06579734]
[1767538134645,0.04522293,91192.0,91189.0,0.06579734]
[1767538134850,0.04522293,91192.0,91189.0,0.01096623]
[1767538136969,0.04522293,91192.0,91189.0,0.06579738]
[1767538137538,0.04522293,91191.0,91187.0,0.01096647]
[1767538138364,0.04522293,91190.0,91187.0,0.01096647]
[1767538138687,0.04513433,91190.0,91187.0,0.06579877]
[1767538138845,0.05483041,91191.0,91187.0,0.06579877]
[1767538139357,0.06579675,91190.0,91186.0,0.06579914]
[1767538140432,0.01096587,91192.0,91181.0,0.23030885]
[1767538140433,0.01096623,91189.0,91182.0,0.01096707]
[1767538140627,0.06580036,91185.0,91182.0,0.04630334]
[1767538140857,0.0281253,91186.0,91181.0,0.01096719]
[1767538141054,0.0281253,91186.0,91182.0,0.06580232]
[1767538141055,0.01096659,91186.0,91182.0,0.06580232]
[1767538141253,0.06579887,91187.0,91183.0,0.04630334]
[1767538141458,0.04546457,91186.0,91183.0,0.06580172]
[1767538141661,0.11126344,91187.0,91183.0,0.06580172]
[1767538141889,0.04546457,91187.0,91184.0,0.06580099]
[1767538142355,0.06579794,91189.0,91185.0,0.06580026]
[1767538143677,0.01096623,91189.0,91185.0,0.06580026]
[1767538144092,0.06579668,91190.0,91186.0,0.01096659]
[1767538144328,0.06579668,91190.0,91185.0,0.06580026]
[1767538144749,0.0548312,91189.0,91185.0,0.06580026]
[1767538144942,0.06579668,91190.0,91185.0,0.06580026]